Workbook

Sheet TXA vs Control
A1: research ID | B1: country | C1: publication type | D1: year | E1: follow-up period for mortality | F1: type of sugery | G1: on/off pump | H1: transfusion protocol presented | I1: IV/topical | J1: continuous/bolus | K1: dose | L1: number of patients in TXA group | M1: number of patients in control group | N1: sample size | O1: primary outcome | P1: secondary outcome
A2: Abul Azm (2006) | B2: Eygpt | C2: original article | D2: 2006 | E2: during hospital stay, average around 4 days | F2: CABG+valve replacement | G2: on | H2: yes | I2: topical | J2: / | K2: 2 g | L2: 50 | M2: 50 | N2: =L2+M2 -> 100 | O2: transfusion volume | P2: postoperative blood loss, reoperation, mortality
A3: Ahn, S. W., et al. (2012) | B3: South Korea | C3: original article | D3: 2006 | E3: / | F3: CABG | G3: off | H3: yes | I3: IV | J3: continuous+bolus | K3: 1g+200mg/h | L3: 38 | M3: 38 | N3: =L3+M3 -> 76 | O3: transfusion rate and volume | P3: postoperative blood loss，adverse events
A4: Ali (2015) | B4: Pakistan | C4: original article | D4: 2015 | E4: / | F4: all kinds | G4: on | H4: no | I4: topical | J4: / | K4: 2.5g | L4: 50 | M4: 50 | N4: =L4+M4 -> 100 | O4: / | P4: postoperative blood loss
A5: Alizadeh Ghavidel, A., et al. (2014) | B5: Iran | C5: original article | D5: 2014 | E5: / | F5: CABG | G5: on | H5: yes | I5: IV | J5: continuous+bolus | K5: 0.5-2mg/kg/h in proportion to creatinne, prime solution 10mg/kg | L5: 100 | M5: 100 | N5: =L5+M5 -> 200 | O5: transfusion volume | P5: postoperative blood loss, reoperation, adverse events
A6: Andreasen, J. J. and C. Nielsen (2004) | B6: Demark | C6: original article | D6: 2004 | E6: 30 days after operation | F6: CABG | G6: on | H6: yes | I6: IV | J6: continuous+bolus | K6: 1.5 g+ 200mg/h | L6: 23 | M6: 23 | N6: =L6+M6 -> 46 | O6: transfusion rate | P6: postoperative blood loss, reoperation, mortality, adverse events
A7: Aoki, M., et al. (2012) | B7: Japan | C7: original article | D7: 2012 | E7: during hospital stay | F7: CABG | G7: off | H7: yes | I7: topical | J7: / | K7: 1g | L7: 50 | M7: 50 | N7: =L7+M7 -> 100 | O7: transfusion volume | P7: postoperative blood loss, reoperation, mortality, adverse events
A8: Armellin, G., et al. (2001) | B8: Italy | C8: original article | D8: 2001 | E8: during hospital stay | F8: Avalve replacement | G8: on | H8: yes | I8: IV | J8: bolus | K8: 5g | L8: 143 | M8: 140 | N8: =L8+M8 -> 283 | O8: transfusion rate and volume | P8: postoperative blood loss, reoperation, mortality, adverse events
A9: Baric (2007) | B9: Croatia | C9: original article | D9: 2007 | E9: during hospital stay, average around 9 days | F9: all kinds | G9: both | H9: yes | I9: topical | J9: / | K9: 2.5 g | L9: 97 | M9: 96 | N9: =L9+M9 -> 193 | O9: transfusion rate and volume | P9: postoperative blood loss,mortality, adverse events
A10: Baric, D., et al. (2011) | B10: Croatia | C10: conference abstract | D10: 2011 | E10: / | F10: all kinds | G10: on | H10: no | I10: topical | J10: / | K10: 2.5g | L10: 20 | M10: 20 | N10: =L10+M10 -> 40 | O10: transfusion rate | P10: postoperative blood loss
A11: Bonis (2000) | B11: Italy | C11: original article | D11: 2000 | E11: during hospital stay | F11: CABG | G11: on | H11: yes | I11: topical | J11: / | K11: 1g | L11: 20 | M11: 20 | N11: =L11+M11 -> 40 | O11: transfusion rate | P11: postoperative blood loss, reoperation, mortality, adverse events
A12: Brown, R. S., et al. (1997) | B12: USA | C12: original article | D12: 1997 | E12: 30 days after operation | F12: CABG | G12: on | H12: yes | I12: IV | J12: continuous+bolus | K12: 15kg/mg+1mg/kg/h | L12: 60 | M12: 30 | N12: =L12+M12 -> 90 | O12: transfusion rate | P12: reoperation, mortality, adverse events
A13: Casati, V., et al. (2001) | B13: Italy | C13: original article | D13: 2001 | E13: / | F13: CABG | G13: off | H13: yes | I13: IV | J13: continuous+bolus | K13: 1g+400mg/h | L13: 20 | M13: 20 | N13: =L13+M13 -> 40 | O13: transfusion rate | P13: postoperative blood loss, reoperation, adverse events
A14: Casati, V., et al. (2004) | B14: Italy | C14: original article | D14: 2004 | E14: during hospital stay, average around 8 days | F14: CABG | G14: on and off | H14: yes | I14: IV | J14: continuous+bolus | K14: 1g+400mg/h+500mg in prime solution | L14: 52 | M14: 50 | N14: =L14+M14 -> 102 | O14: transfusion rate | P14: reoperation, mortality, adverse events
A15: Chaudhary(2018) | B15: Pakistan | C15: original article | D15: 2018 | E15: during hospital stay | F15: all kinds | G15: on | H15: no | I15: topical | J15: / | K15: 2g | L15: 50 | M15: 50 | N15: =L15+M15 -> 100 | O15: transfusion volume | P15: postoperative blood loss, reoperation, mortality
A16: De Peppo, A. P., et al. (1995) | B16: Italy | C16: original article | D16: 1995 | E16: / | F16: all kinds | G16: on | H16: yes | I16: IV | J16: continuous+bolus | K16: 10mg/kg+1mg/kg/h | L16: 15 | M16: 15 | N16: =L16+M16 -> 30 | O16: transfusion rate | P16: postoperative blood loss, reoperation
A17: Diprose, P., et al. (2005) | B17: UK | C17: original article | D17: 2005 | E17: during hospital stay | F17: CABG+valve replacement | G17: on | H17: yes | I17: IV | J17: bolus | K17: 5g | L17: 60 | M17: 60 | N17: =L17+M17 -> 120 | O17: transfusion rate and volume | P17: postoperative blood loss, reoperation, mortality, adverse events
A18: Esfandiari, B. R., et al. (2013) | B18: Iran | C18: original article | D18: 2013 | E18: during hospital stay | F18: CABG | G18: on | H18: yes | I18: IV | J18: bolus | K18: prime solution 10mg/kg+1mg/kg | L18: 75 | M18: 75 | N18: =L18+M18 -> 150 | O18: transfusion rate and volume | P18: postoperative blood loss, reoperation, mortality, adverse events
A19: Fawzy (2009) | B19: Canada | C19: original article | D19: 2009 | E19: during hospital stay, average around 8 days | F19: CABG | G19: on | H19: yes | I19: topical | J19: / | K19: 1g | L19: 19 | M19: 19 | N19: =L19+M19 -> 38 | O19: transfusion volume | P19: postoperative blood loss, reoperation, mortality, adverse events
A20: Greiff, G., et al. (2012) | B20: Norway | C20: original article | D20: 2012 | E20: during hospital stay, average around 9 days | F20: CABG+valve replacement | G20: on | H20: yes | I20: IV | J20: continuous+bolus | K20: 10mg/kg, 1mg/kg/h | L20: 30 | M20: 33 | N20: =L20+M20 -> 63 | O20: transfusion volume | P20: postoperative blood loss, reoperation, mortality
A21: Hardy, J. F., et al. (1998) | B21: Canada | C21: original article | D21: 1998 | E21: during hospital stay | F21: CABG | G21: on | H21: yes | I21: IV | J21: bolus | K21: 10g | L21: 43 | M21: 45 | N21: =L21+M21 -> 88 | O21: transfusion rate | P21: reoperation, mortality, adverse events
A22: Hashemi, J., et al. (2011) | B22: Iran | C22: original article | D22: 2011 | E22: during hospital stay | F22: CABG | G22: on | H22: yes | I22: IV | J22: bolus | K22: 1g prime solution+1g | L22: 50 | M22: 50 | N22: =L22+M22 -> 100 | O22: transfusion rate | P22: postoperative blood loss, reoperation, mortality, adverse events
A23: Hassani, E., et al. (2012) | B23: Pakistan | C23: original article | D23: 2011 | E23: / | F23: CABG | G23: on | H23: no | I23: IV | J23: bolus | K23: 10mg/kg | L23: 100 | M23: 50 | N23: =L23+M23 -> 150 | O23: transfusion volume | P23: postoperative blood loss
A24: Hosseini, H., et al. (2014) | B24: Iran | C24: original article | D24: 2014 | E24: / | F24: CABG | G24: off | H24: yes | I24: topical | J24: / | K24: 1g | L24: 35 | M24: 36 | N24: =L24+M24 -> 71 | O24: / | P24: postoperative blood loss, reoperation, adverse events
A25: Jares, M., et al. (2003). | B25: Czech | C25: original article | D25: 2003 | E25: during hospital stay | F25: CABG | G25: off | H25: yes | I25: IV | J25: continuous+bolus | K25: 1g+200mg/h | L25: 22 | M25: 25 | N25: =L25+M25 -> 47 | O25: transfusion rate | P25: postoperative blood loss, reoperation, mortality, adverse events
A26: Kamada, K., et al. (2001) | B26: Japan | C26: original article | D26: 2001 | E26: / | F26: CABG+valve replacement | G26: on | H26: yes | I26: IV | J26: bolus | K26: 50mg/kg×2 times | L26: 17 | M26: 15 | N26: =L26+M26 -> 32 | O26: / | P26: postoperative blood loss
A27: Katsaros, D., et al. (1996) | B27: USA | C27: original article | D27: 1996 | E27: during hospital stay | F27: all kinds | G27: on | H27: yes | I27: IV | J27: bolus | K27: 10g | L27: 104 | M27: 106 | N27: =L27+M27 -> 210 | O27: transfusion rate | P27: postoperative blood loss, reoperation, mortality, adverse events
A28: Kimenai, D. M., et al. (2016) | B28: Netherlands | C28: original article | D28: 2016 | E28: during hospital stay | F28: all kinds | G28: on | H28: yes | I28: topical | J28: / | K28: 2g | L28: 245 | M28: 249 | N28: =L28+M28 -> 494 | O28: transfusion rate and volume | P28: postoperative blood loss, reoperation, mortality, adverse events
A29: Landymore, R. W., et al. (1997) | B29: Canada | C29: original article | D29: 1997 | E29: during hospital stay | F29: CABG | G29: on | H29: yes | I29: IV | J29: continuous+bolus | K29: 10mg/kg+1mg/kg/h | L29: 56 | M29: 50 | N29: =L29+M29 -> 106 | O29: transfusion volume | P29: postoperative blood loss, mortality, adverse events
A30: Later, A. F. L., et al(2009) | B30: Netherlands | C30: original article | D30: 2009 | E30: during hospital stay, average around 8 days | F30: all kinds | G30: on | H30: yes | I30: IV | J30: continuous+bolus | K30: 1g+0.5g prime+400mg/h | L30: 99 | M30: 103 | N30: =L30+M30 -> 202 | O30: transfusion rate and volume | P30: postoperative blood loss, reoperation, mortality, adverse events
A31: Maddali, M. M. and M. C. Rajakumar (2007) | B31: oman | C31: original article | D31: 2007 | E31: during hospital stay | F31: CABG | G31: on | H31: yes | I31: IV | J31: continuous+bolus | K31: 10mg/kg+1mg/kg/h | L31: 111 | M31: 111 | N31: =L31+M31 -> 222 | O31: transfusion volume | P31: postoperative blood loss, reoperation, mortality, adverse events
A32: Mehr-Aein, A., et al. (2006) | B32: Iran | C32: original article | D32: 2006 | E32: during hospital stay, average around 7 days | F32: CABG | G32: off | H32: yes | I32: IV | J32: bolus | K32: 15mg/kg × 2 times | L32: 33 | M32: 33 | N32: =L32+M32 -> 66 | O32: transfusion rate | P32: postoperative blood loss, reoperation, mortality, adverse events
A33: Mirmohammadsadeghi (2018) | B33: Iran | C33: original article | D33: 2018 | E33: / | F33: CABG | G33: on | H33: no | I33: topical | J33: / | K33: 1 g | L33: 62 | M33: 63 | N33: =L33+M33 -> 125 | O33: transfusion volume | P33: postoperative blood loss
A34: Misfeld, M., et al. (1998) | B34: Germay | C34: original article | D34: 1998 | E34: / | F34: CABG | G34: on | H34: yes | I34: IV | J34: continuous+bolus | K34: 10mg/kg+1mg/kg/h | L34: 14 | M34: 14 | N34: =L34+M34 -> 28 | O34: transfusion rate | P34: postoperative blood loss
A35: Murphy, G. J., et al. (2006) | B35: Italy | C35: original article | D35: 2006 | E35: during hospital stay, average around 6 days | F35: CABG | G35: off | H35: yes | I35: IV | J35: bolus | K35: 2g | L35: 50 | M35: 50 | N35: =L35+M35 -> 100 | O35: transfusion rate and volume | P35: postoperative blood loss, reoperation, mortality, adverse events
A36: Myles, P. S., et al. (2017) | B36: Australia | C36: original article | D36: 2017 | E36: 30 days after operation | F36: CABG | G36: on and off | H36: yes | I36: IV | J36: bolus | K36: 100mg/kg（n=1392）,50mg/kg（n=3329） | L36: 2311 | M36: 2320 | N36: =L36+M36 -> 4631 | O36: transfusion rate and volume | P36: reoperation, mortality, adverse events
A37: Nouraei, M., et al. (2013) | B37: Iran | C37: original article | D37: 2013 | E37: during hospital stay | F37: CABG | G37: on | H37: yes | I37: topical | J37: / | K37: 2g | L37: 40 | M37: 40 | N37: =L37+M37 -> 80 | O37: transfusion volume | P37: postoperative blood loss, reoperation, mortality, adverse events
A38: Pinosky, M. L., et al. (1997) | B38: USA | C38: original article | D38: 1997 | E38: / | F38: CABG+valve replacement | G38: on | H38: yes | I38: IV | J38: continuous+bolus | K38: 15mg/kg + 1mg/kg/h for 6h | L38: 20 | M38: 19 | N38: =L38+M38 -> 39 | O38: transfusion rate | P38: postoperative blood loss
A39: pleym（2003） | B39: Norway | C39: original article | D39: 2003 | E39: during hospital stay | F39: CABG | G39: on | H39: yes | I39: IV | J39: bolus | K39: 30mg/kg | L39: 40 | M39: 40 | N39: =L39+M39 -> 80 | O39: transfusion rate and volume | P39: postoperative blood loss, reoperation, mortality, adverse events
A40: Pugh, S. C. and A. K. Wielogorski (1995) | B40: UK | C40: original article | D40: 1995 | E40: / | F40: all kinds | G40: on | H40: yes | I40: IV | J40: bolus | K40: 2.5g+2.5g into prime solution | L40: 22 | M40: 23 | N40: =L40+M40 -> 45 | O40: / | P40: postoperative blood loss,reoperation
A41: Rousou, J. A., et al. (1995) | B41: USA | C41: original article | D41: 1995 | E41: during hospital stay | F41: CABG | G41: on | H41: yes | I41: IV | J41: continuous+bolus | K41: 2g+continuous infusion 8g | L41: 206 | M41: 209 | N41: =L41+M41 -> 415 | O41: transfusion rate and volume | P41: postoperative blood loss, reoperation, mortality, adverse events
A42: Shah, M. U. A., et al. (2015) | B42: Pakistan | C42: original article | D42: 2015 | E42: / | F42: all kinds | G42: on | H42: no | I42: topical | J42: / | K42: 2.5g | L42: 50 | M42: 50 | N42: =L42+M42 -> 100 | O42: / | P42: postoperative blood loss
A43: Shi, J., et al. (2013) | B43: China | C43: original article | D43: 2013 | E43: 30 days after operation | F43: CABG | G43: on | H43: yes | I43: IV | J43: continuous+bolus | K43: 10mg/kg bolus+10mg/kg/h | L43: 274 | M43: 278 | N43: =L43+M43 -> 552 | O43: transfusion rate and volume | P43: postoperative blood loss, reoperation, mortality, adverse events
A44: Shore-Lesserson, L., et al. (1996) | B44: USA | C44: original article | D44: 1996 | E44: during hospital stay | F44: CABG+valve replacement | G44: on | H44: yes | I44: IV | J44: continuous+bolus | K44: 20mg/kg+2mg/kg/h | L44: 17 | M44: 13 | N44: =L44+M44 -> 30 | O44: transfusion rate | P44: postoperative blood loss, reoperation, mortality, adverse events
A45: Speekenbrink, R. G. H., et al. (1995) | B45: Netherlands | C45: original article | D45: 1995 | E45: during hospital stay | F45: CABG | G45: on | H45: yes | I45: IV | J45: continuous+bolus | K45: 10mg/kg+1mg/kg/h | L45: 15 | M45: 15 | N45: =L45+M45 -> 30 | O45: transfusion rate and volume | P45: postoperative blood loss, reoperation, mortality, adverse events
A46: Taghaddomi, R. J., et al. (2009) | B46: Iran | C46: original article | D46: 2009 | E46: during hospital stay | F46: CABG | G46: off | H46: yes | I46: IV | J46: continuous+bolus | K46: 1g+400mg/h | L46: 50 | M46: 50 | N46: =L46+M46 -> 100 | O46: transfusion rate | P46: postoperative blood loss,adverse events
A47: Uozaki, Y., et al. (2001) | B47: Japan | C47: original article | D47: 2001 | E47: / | F47: CABG | G47: on | H47: yes | I47: IV | J47: bolus | K47: 50mg/kg | L47: 7 | M47: 7 | N47: =L47+M47 -> 14 | O47: / | P47: postoperative blood loss,reoperation
A48: Wang, G., et al. (2012) | B48: China | C48: original article | D48: 2012 | E48: during hospital stay, average around 7.6 days | F48: CABG | G48: off | H48: yes | I48: IV | J48: continuous+bolus | K48: 1g+400mg/h | L48: 116 | M48: 115 | N48: =L48+M48 -> 231 | O48: transfusion rate and volume | P48: postoperative blood loss, reoperation, mortality, adverse events
A49: Zabeeda, D., et al. (2002) | B49: Isreal | C49: original article | D49: 2002 | E49: during hospital stay | F49: CABG | G49: on | H49: yes | I49: IV | J49: continuous+bolus | K49: 10mg/kg+1mg/kg/h | L49: 25 | M49: 25 | N49: =L49+M49 -> 50 | O49: transfusion rate | P49: postoperative blood loss, mortality, adverse events
A50: Zhang, Y., et al. (2018) | B50: China | C50: original article | D50: 2018 | E50: 7 years after operation | F50: CABG | G50: on | H50: yes | I50: IV | J50: continuous+bolus | K50: 10mg/kg + 10 mg/kg/h | L50: 100 | M50: 102 | N50: =L50+M50 -> 202 | O50: transfusion rate and volume | P50: postoperative blood loss, reoperation, mortality, adverse events
